[Event "White Rook U14 Final 2019"]
[Site "Sochi"]
[Date "2019.06.06"]
[Round "3.3"]
[White "Mugenov, Vadim"]
[Black "Shirkunov, Alexandr"]
[Result "0-1"]
[ECO "B17"]
[WhiteElo "1329"]
[BlackElo "1557"]
[Annotator "NA RC"]
[PlyCount "78"]
[EventDate "2019.06.02"]
[EventCountry "RUS"]
[SourceTitle "playchess.com"]
[Source "ChessBase"]
[SourceQuality "1"]
[TimeControl "5400+30"]

1. e4 {[%emt 0:00:00]} c6 {[%emt 0:00:00]} 2. Nc3 {[%emt 0:00:00]} d5 {[%emt 0:00:00]} 3. Nf3 {[%emt 0:00:00]} dxe4 {[%emt 0:00:00]} 4. Nxe4 {[%emt 0:00:00]} Nd7 {[%emt 0:00:00]} 5. Bc4 {[%emt 0:00:43]} Ngf6 {[%emt 0:00:00]} 6. Ng3 {[%emt 0:00:12]} e6 {[%emt 0:00:33]} 7. O-O {[%emt 0:00:09]} Be7 {[%emt 0:01:00]} 8. d4 {[%emt 0:00:28]} O-O {[%emt 0:03:33]} 9. Bf4 {[%emt 0:01:00]} Nb6 {[%emt 0:00:00]} 10. Bb3 {[%emt 0:00:31]} c5 {[%emt 0:00:00]} 11. c3 {[%emt 0:00:41]} c4 {[%emt 0:00:05]} 12. Bc2 {[%emt 0:00:00]} Nbd5 {[%emt 0:00:03]} 13. Be5 {[%emt 0:00:36]} b5 {[%emt 0:02:00]} 14. a4 {[%emt 0:00:22]} b4 {[%emt 0:03:36]} 15. cxb4 {[%emt 0:04:05]} Bxb4 {[%emt 0:03:06]} 16. Bxf6 {[%emt 0:00:48]} Qxf6 {[%emt 0:00:42]} 17. Ne4 {[%emt 0:00:07]} Qe7 {[%emt 0:01:34]} 18. Ne5 {[%emt 0:00:47]} Qc7 {[%emt 0:05:58]} 19. Ng5 {[%emt 0:12:53]} f5 {[%emt 0:05:58]} 20. b3 {[%emt 0:02:57]} Nc3 {[%emt 0:14:07]} 21. Qf3 {[%emt 0:00:15]} Bb7 {[%emt 0:01:37]} 22. Qh3 {[%emt 0:00:35]} h6 {[%emt 0:04:00]} 23. Nxe6 {[%emt 0:00:55]} Qd6 {[%emt 0:00:49]} 24. Nxf8 {[%emt 0:01:07]} Rxf8 {[%emt 0:02:26]} 25. Kh1 {[%emt 0:07:58]} Qxd4 {[%emt 0:01:59]} 26. Ng6 {[%emt 0:03:23]} Re8 {[%emt 0:03:14]} 27. bxc4 {[%emt 0:04:59]} Be4 {[%emt 0:02:49]} 28. Bxe4 {[%emt 0:07:02]} Qxe4 {[%emt 0:00:05]} 29. Nh4 {[%emt 0:01:27]} f4 {[%emt 0:10:43]} 30. Nf3 {[%emt 0:01:52]} Qxc4 {[%emt 0:02:15]} 31. Qd7 {[%emt 0:03:11]} Re7 {[%emt 0:00:41]} 32. Qd4 {[%emt 0:01:11]} Qxd4 {[%emt 0:02:09]} 33. Nxd4 {[%emt 0:00:46]} Bc5 {[%emt 0:01:58]} 34. Nb3 {[%emt 0:01:26]} Bb4 {[%emt 0:01:20]} 35. Nd4 {[%emt 0:00:33]} Bc5 {[%emt 0:00:36]} 36. Nb5 {[%emt 0:00:09]} Ne4 {[%emt 0:00:00]} 37. f3 {[%emt 0:09:43]} Nf2+ {[%emt 0:00:30]} 38. Rxf2 {[%emt 0:01:25]} Bxf2 {[%emt 0:00:03]} 39. Nc3 {[%emt 0:00:19]} Bd4 {[%emt 0:01:08]} 0-1

[Event "White Rook U14 Final 2019"]
[Site "Sochi"]
[Date "2019.06.06"]
[Round "3.4"]
[White "Toledo Flores, Marianna"]
[Black "Mkrtchian, Anait"]
[Result "0-1"]
[ECO "D06"]
[WhiteElo "1530"]
[BlackElo "1165"]
[Annotator "NA RC"]
[PlyCount "108"]
[EventDate "2019.06.02"]
[EventCountry "RUS"]
[SourceTitle "playchess.com"]
[Source "ChessBase"]
[SourceQuality "1"]
[TimeControl "5400+30"]

1. Nf3 {[%emt 0:00:00]} d5 {[%emt 0:00:00]} 2. d4 {[%emt 0:00:00]} Bf5 {[%emt 0:00:00]} 3. c4 {[%emt 0:00:00]} e6 {[%emt 0:00:05]} 4. Qb3 {[%emt 0:00:30]} b6 {[%emt 0:01:46]} 5. cxd5 {[%emt 0:01:21]} Qxd5 {[%emt 0:02:42]} 6. Qxd5 {[%emt 0:01:34]} exd5 {[%emt 0:00:40]} 7. Nc3 {[%emt 0:00:09]} Nf6 {[%emt 0:00:00]} 8. Bf4 {[%emt 0:00:19]} Bb4 {[%emt 0:00:50]} 9. a3 {[%emt 0:01:26]} Bxc3+ {[%emt 0:00:22]} 10. bxc3 {[%emt 0:00:13]} c6 {[%emt 0:00:18]} 11. Ne5 {[%emt 0:01:37]} Nfd7 {[%emt 0:01:39]} 12. Nf3 {[%emt 0:02:10]} Nf6 {[%emt 0:01:14]} 13. g3 {[%emt 0:00:35]} Nbd7 {[%emt 0:00:21]} 14. Bg2 {[%emt 0:00:40]} O-O-O {[%emt 0:02:00]} 15. Rc1 {[%emt 0:00:34]} Rhe8 {[%emt 0:02:44]} 16. Ne5 {[%emt 0:03:17]} Nxe5 {[%emt 0:00:37]} 17. Bxe5 {[%emt 0:00:52]} b5 {[%emt 0:00:34]} 18. f3 {[%emt 0:03:10]} Nd7 {[%emt 0:01:33]} 19. Bxg7 {[%emt 0:02:59]} Bd3 {[%emt 0:01:03]} 20. Bf1 {[%emt 0:00:38]} Re6 {[%emt 0:01:22]} 21. Kd2 {[%emt 0:01:26]} Bg6 {[%emt 0:00:29]} 22. Bh6 {[%emt 0:01:17]} Kb7 {[%emt 0:03:30]} 23. h4 {[%emt 0:03:17]} Nb6 {[%emt 0:02:54]} 24. Bg5 {[%emt 0:05:16]} f6 {[%emt 0:00:56]} 25. Bh3 {[%emt 0:00:35]} Nc4+ {[%emt 0:00:53]} 26. Ke1 {[%emt 0:01:18]} Ree8 {[%emt 0:00:54]} 27. Bxf6 {[%emt 0:01:45]} Rd6 {[%emt 0:00:43]} 28. Bg5 {[%emt 0:01:26]} Bd3 {[%emt 0:01:13]} 29. Rh2 {[%emt 0:02:49]} Nxa3 {[%emt 0:00:35]} 30. Kd2 {[%emt 0:01:19]} Bg6 {[%emt 0:00:34]} 31. e3 {[%emt 0:02:13]} Nc4+ {[%emt 0:00:55]} 32. Ke2 {[%emt 0:00:53]} a5 {[%emt 0:00:32]} 33. Bg4 {[%emt 0:01:06]} Nb2 {[%emt 0:04:49]} 34. Ra1 {[%emt 0:02:02]} a4 {[%emt 0:00:20]} 35. f4 {[%emt 0:02:53]} Bd3+ {[%emt 0:00:42]} 36. Kd2 {[%emt 0:00:07]} h6 {[%emt 0:01:02]} 37. f5 {[%emt 0:02:05]} hxg5 {[%emt 0:00:33]} 38. hxg5 {[%emt 0:00:05]} Be4 {[%emt 0:00:31]} 39. f6 {[%emt 0:02:14]} Nc4+ {[%emt 0:00:25]} 40. Kc1 {[%emt 0:01:34]} Nxe3 {[%emt 0:01:40]} 41. Bh5 {[%emt 0:01:06]} Rf8 {[%emt 0:01:08]} 42. Kb2 {[%emt 0:00:29]} Nc4+ {[%emt 0:08:39]} 43. Ka2 {[%emt 0:00:17]} Rh8 {[%emt 0:03:53]} 44. Rf1 {[%emt 0:03:05]} Nb6 {[%emt 0:00:45]} 45. Rh4 {[%emt 0:02:01]} Bd3 {[%emt 0:02:46]} 46. Re1 {[%emt 0:01:12]} Be4 {[%emt 0:04:08]} 47. g4 {[%emt 0:01:35]} Nd7 {[%emt 0:06:08]} 48. Rf1 {[%emt 0:01:56]} Bd3 {[%emt 0:00:58]} 49. Rf3 {[%emt 0:00:24]} Bc4+ {[%emt 0:02:47]} 50. Ka3 {[%emt 0:02:39]} Re6 {[%emt 0:02:20]} 51. Rh2 {[%emt 0:00:31]} Re1 {[%emt 0:05:23]} 52. Kb2 {[%emt 0:00:00]} a3+ {[%emt 0:07:09]} 53. Kxa3 {[%emt 0:03:36]} Ra8+ {[%emt 0:00:40]} 54. Kb4 {[%emt 0:00:18]} Ra4# {[%emt 0:00:07]} 0-1

[Event "White Rook U14 Final 2019"]
[Site "Sochi"]
[Date "2019.06.06"]
[Round "3.5"]
[White "Suvanbekov, Jahangir"]
[Black "Kurus, Artem"]
[Result "0-1"]
[ECO "A46"]
[WhiteElo "1569"]
[BlackElo "1769"]
[Annotator "NA RC"]
[PlyCount "92"]
[EventDate "2019.06.02"]
[EventCountry "RUS"]
[SourceTitle "playchess.com"]
[Source "ChessBase"]
[SourceQuality "1"]
[TimeControl "5400+30"]

1. d4 {[%emt 0:00:00]} Nf6 {[%emt 0:00:00]} 2. Bf4 {[%emt 0:00:25]} e6 {[%emt 0:00:06]} 3. Nf3 {[%emt 0:00:08]} c5 {[%emt 0:00:00]} 4. e3 {[%emt 0:00:58]} Qb6 {[%emt 0:00:00]} 5. Be5 {[%emt 0:06:27]} Qxb2 {[%emt 0:17:40]} 6. d5 {[%emt 0:02:56]} Qb6 {[%emt 0:00:20]} 7. d6 {[%emt 0:01:09]} Ne4 {[%emt 0:02:25]} 8. Nbd2 {[%emt 0:09:37]} Nxd6 {[%emt 0:01:39]} 9. Bd3 {[%emt 0:01:41]} f6 {[%emt 0:03:01]} 10. Bxd6 {[%emt 0:01:32]} Qxd6 {[%emt 0:02:05]} 11. O-O {[%emt 0:00:47]} Nc6 {[%emt 0:02:07]} 12. e4 {[%emt 0:02:55]} Qc7 {[%emt 0:02:26]} 13. Re1 {[%emt 0:01:06]} d6 {[%emt 0:02:53]} 14. Bb5 {[%emt 0:04:42]} Be7 {[%emt 0:03:27]} 15. Nf1 {[%emt 0:03:20]} a6 {[%emt 0:00:09]} 16. Bd3 {[%emt 0:03:47]} b5 {[%emt 0:02:56]} 17. c3 {[%emt 0:02:09]} Qa5 {[%emt 0:03:58]} 18. Qc2 {[%emt 0:02:59]} Bd7 {[%emt 0:02:45]} 19. a3 {[%emt 0:03:21]} c4 {[%emt 0:01:23]} 20. Be2 {[%emt 0:01:16]} O-O {[%emt 0:00:52]} 21. Ne3 {[%emt 0:05:40]} Be8 {[%emt 0:04:21]} 22. a4 {[%emt 0:02:55]} Qd8 {[%emt 0:00:42]} 23. Red1 {[%emt 0:02:40]} Bg6 {[%emt 0:01:05]} 24. Nh4 {[%emt 0:02:08]} Bf7 {[%emt 0:05:36]} 25. g3 {[%emt 0:05:05]} Na5 {[%emt 0:05:16]} 26. Bf3 {[%emt 0:04:55]} Nb3 {[%emt 0:02:29]} 27. Ra2 {[%emt 0:01:51]} Qb6 {[%emt 0:01:33]} 28. Nhg2 {[%emt 0:01:51]} Rad8 {[%emt 0:06:01]} 29. Nf4 {[%emt 0:02:29]} Rfe8 {[%emt 0:01:12]} 30. Bg2 {[%emt 0:01:54]} Bf8 {[%emt 0:04:18]} 31. h3 {[%emt 0:01:54]} g6 {[%emt 0:03:58]} 32. Bf3 {[%emt 0:01:52]} Bg7 {[%emt 0:00:00]} 33. Ne2 {[%emt 0:04:14]} f5 {[%emt 0:01:59]} 34. Rb2 {[%emt 0:04:01]} Bh6 {[%emt 0:01:50]} 35. Nd4 {[%emt 0:05:18]} Bxe3 {[%emt 0:02:26]} 36. fxe3 {[%emt 0:00:37]} e5 {[%emt 0:00:06]} 37. Nxb3 {[%emt 0:00:23]} cxb3 {[%emt 0:01:18]} 38. Qd2 {[%emt 0:00:43]} f4 {[%emt 0:01:14]} 39. axb5 {[%emt 0:00:00]} fxe3 {[%emt 0:00:31]} 40. Qe2 {[%emt 0:00:33]} axb5 {[%emt 0:00:07]} 41. Re1 {[%emt 0:00:18]} Ra8 {[%emt 0:00:36]} 42. Qxe3 {[%emt 0:00:20]} Qxe3+ {[%emt 0:00:11]} 43. Rxe3 {[%emt 0:00:06]} Ra2 {[%emt 0:01:03]} 44. Ree2 {[%emt 0:00:11]} Rea8 {[%emt 0:00:43]} 45. Bg4 {[%emt 0:00:53]} Rxb2 {[%emt 0:00:00]} 46. Rxb2 {[%emt 0:00:00]} Ra1+ {[%emt 0:00:22]} 0-1

[Event "White Rook U14 Final 2019"]
[Site "Sochi"]
[Date "2019.06.06"]
[Round "3.6"]
[White "Usov, Aleksandr E."]
[Black "Solomko, Artur"]
[Result "1-0"]
[ECO "C06"]
[WhiteElo "1812"]
[BlackElo "1498"]
[Annotator "NA RC"]
[PlyCount "81"]
[EventDate "2019.06.02"]
[EventCountry "RUS"]
[SourceTitle "playchess.com"]
[Source "ChessBase"]
[SourceQuality "1"]
[TimeControl "5400+30"]

1. e4 {[%emt 0:00:00]} e6 {[%emt 0:00:00]} 2. d4 {[%emt 0:00:00]} d5 {[%emt 0:00:00]} 3. Nd2 {[%emt 0:00:00]} Nf6 {[%emt 0:00:00]} 4. e5 {[%emt 0:00:00]} Nfd7 {[%emt 0:00:00]} 5. c3 {[%emt 0:00:00]} c5 {[%emt 0:00:03]} 6. Bd3 {[%emt 0:00:00]} Nc6 {[%emt 0:00:00]} 7. Ngf3 {[%emt 0:00:00]} cxd4 {[%emt 0:00:00]} 8. cxd4 {[%emt 0:00:00]} f6 {[%emt 0:01:12]} 9. exf6 {[%emt 0:00:00]} Nxf6 {[%emt 0:00:07]} 10. O-O {[%emt 0:00:14]} Bd6 {[%emt 0:00:16]} 11. b3 {[%emt 0:01:10]} O-O {[%emt 0:01:07]} 12. Bb2 {[%emt 0:00:00]} Nb4 {[%emt 0:03:43]} 13. Bb1 {[%emt 0:00:41]} Qe8 {[%emt 0:08:12]} 14. Ne5 {[%emt 0:01:31]} Qh5 {[%emt 0:06:14]} 15. a3 {[%emt 0:05:29]} Qxd1 {[%emt 0:04:11]} 16. Rxd1 {[%emt 0:00:03]} Nc6 {[%emt 0:01:33]} 17. Nxc6 {[%emt 0:00:24]} bxc6 {[%emt 0:00:00]} 18. Bd3 {[%emt 0:00:13]} c5 {[%emt 0:04:05]} 19. Nf3 {[%emt 0:09:05]} Rb8 {[%emt 0:03:20]} 20. dxc5 {[%emt 0:00:49]} Bxc5 {[%emt 0:01:01]} 21. Bd4 {[%emt 0:01:55]} Bxd4 {[%emt 0:04:35]} 22. Nxd4 {[%emt 0:00:00]} Bd7 {[%emt 0:01:38]} 23. Re1 {[%emt 0:00:35]} Rfe8 {[%emt 0:02:54]} 24. f4 {[%emt 0:00:00]} Nh5 {[%emt 0:03:02]} 25. g3 {[%emt 0:00:54]} g5 {[%emt 0:02:02]} 26. Re5 {[%emt 0:00:40]} gxf4 {[%emt 0:02:22]} 27. Rxh5 {[%emt 0:01:06]} e5 {[%emt 0:00:10]} 28. Bxh7+ {[%emt 0:00:50]} Kg7 {[%emt 0:00:32]} 29. Nf5+ {[%emt 0:01:02]} Bxf5 {[%emt 0:00:30]} 30. Bxf5 {[%emt 0:00:05]} f3 {[%emt 0:03:06]} 31. b4 {[%emt 0:07:54]} Rh8 {[%emt 0:06:18]} 32. Rxh8 {[%emt 0:00:50]} Rxh8 {[%emt 0:00:14]} 33. Rd1 {[%emt 0:00:09]} Kf6 {[%emt 0:12:23]} 34. Bg4 {[%emt 0:03:02]} e4 {[%emt 0:04:16]} 35. Rxd5 {[%emt 0:00:52]} Re8 {[%emt 0:00:05]} 36. Rf5+ {[%emt 0:01:50]} Kg6 {[%emt 0:00:21]} 37. Bh5+ {[%emt 0:00:05]} Kxf5 {[%emt 0:00:09]} 38. Bxe8 {[%emt 0:00:04]} e3 {[%emt 0:00:31]} 39. Kf1 {[%emt 0:02:22]} f2 {[%emt 0:01:29]} 40. Bb5 {[%emt 0:00:00]} Ke4 {[%emt 0:00:26]} 41. Be2 {[%emt 0:00:18]} 1-0

[Event "White Rook U14 Final 2019"]
[Site "Sochi"]
[Date "2019.06.06"]
[Round "3.7"]
[White "Alisherov, Alikhan"]
[Black "Saikin, Ilia"]
[Result "1/2-1/2"]
[ECO "A46"]
[WhiteElo "1567"]
[BlackElo "1641"]
[Annotator "NA RC"]
[PlyCount "68"]
[EventDate "2019.06.02"]
[EventCountry "RUS"]
[SourceTitle "playchess.com"]
[Source "ChessBase"]
[SourceQuality "1"]
[TimeControl "5400+30"]

1. d4 {[%emt 0:00:00]} Nf6 {[%emt 0:00:17]} 2. Bf4 {[%emt 0:00:25]} e6 {[%emt 0:00:28]} 3. Nf3 {[%emt 0:00:29]} c5 {[%emt 0:00:12]} 4. e3 {[%emt 0:00:54]} Qb6 {[%emt 0:00:08]} 5. Qc1 {[%emt 0:04:15]} Nc6 {[%emt 0:00:22]} 6. c3 {[%emt 0:01:13]} Nh5 {[%emt 0:00:20]} 7. Bg3 {[%emt 0:02:19]} Nxg3 {[%emt 0:01:46]} 8. hxg3 {[%emt 0:00:12]} d5 {[%emt 0:02:18]} 9. Nbd2 {[%emt 0:01:14]} cxd4 {[%emt 0:00:12]} 10. exd4 {[%emt 0:00:56]} e5 {[%emt 0:00:08]} 11. Nb3 {[%emt 0:07:27]} e4 {[%emt 0:06:19]} 12. Nfd2 {[%emt 0:00:06]} a5 {[%emt 0:02:15]} 13. a4 {[%emt 0:03:39]} Bd6 {[%emt 0:04:12]} 14. Be2 {[%emt 0:00:59]} Be6 {[%emt 0:01:07]} 15. Qd1 {[%emt 0:14:04]} Qc7 {[%emt 0:02:45]} 16. O-O {[%emt 0:01:59]} h5 {[%emt 0:01:21]} 17. Nc5 {[%emt 0:04:04]} g6 {[%emt 0:15:46]} 18. Re1 {[%emt 0:02:44]} h4 {[%emt 0:00:52]} 19. Nxe6 {[%emt 0:06:57]} fxe6 {[%emt 0:00:11]} 20. Bg4 {[%emt 0:02:36]} hxg3 {[%emt 0:00:44]} 21. f3 {[%emt 0:00:31]} Qh7 {[%emt 0:01:33]} 22. Bh3 {[%emt 0:00:12]} Qf7 {[%emt 0:00:19]} 23. Qe2 {[%emt 0:02:49]} Rxh3 {[%emt 0:34:03]} 24. gxh3 {[%emt 0:01:04]} e3 {[%emt 0:00:46]} 25. Qxe3 {[%emt 0:01:04]} Kd7 {[%emt 0:00:04]} 26. Rf1 {[%emt 0:08:51]} Bf4 {[%emt 0:01:13]} 27. Qe2 {[%emt 0:00:20]} Rh8 {[%emt 0:00:33]} 28. Kg2 {[%emt 0:03:20]} Qf5 {[%emt 0:02:36]} 29. Rh1 {[%emt 0:01:52]} Qc2 {[%emt 0:02:39]} 30. Rhd1 {[%emt 0:01:57]} Qf5 {[%emt 0:08:05]} 31. Rh1 {[%emt 0:00:06]} Qc2 {[%emt 0:00:35]} 32. Rhd1 {[%emt 0:02:43]} Qf5 {[%emt 0:00:08]} 33. Rh1 {[%emt 0:00:07]} Qc2 {[%emt 0:00:08]} 34. Rhd1 {[%emt 0:00:14]} Nb8 {[%emt 0:00:55]} 1/2-1/2

[Event "White Rook U14 Final 2019"]
[Site "Sochi"]
[Date "2019.06.06"]
[Round "3.8"]
[White "Krupnova, Anna"]
[Black "Pazylbekova, Nurzhamal"]
[Result "1-0"]
[ECO "D36"]
[WhiteElo "1714"]
[BlackElo "1155"]
[Annotator "NA RC"]
[PlyCount "114"]
[EventDate "2019.06.02"]
[EventCountry "RUS"]
[SourceTitle "playchess.com"]
[Source "ChessBase"]
[SourceQuality "1"]
[TimeControl "5400+30"]

1. d4 {[%emt 0:00:00]} d5 {[%emt 0:00:00]} 2. c4 {[%emt 0:00:00]} e6 {[%emt 0:00:00]} 3. Nc3 {[%emt 0:00:00]} Nf6 {[%emt 0:00:00]} 4. cxd5 {[%emt 0:00:00]} exd5 {[%emt 0:00:00]} 5. Bg5 {[%emt 0:00:00]} Nbd7 {[%emt 0:00:24]} 6. e3 {[%emt 0:00:44]} Be7 {[%emt 0:00:24]} 7. Bd3 {[%emt 0:00:36]} O-O {[%emt 0:00:00]} 8. Qc2 {[%emt 0:00:39]} c6 {[%emt 0:00:10]} 9. Nge2 {[%emt 0:00:21]} Re8 {[%emt 0:00:33]} 10. f3 {[%emt 0:09:32]} h6 {[%emt 0:06:47]} 11. Bh4 {[%emt 0:01:10]} Ng4 {[%emt 0:10:03]} 12. Bxe7 {[%emt 0:02:42]} Nxe3 {[%emt 0:01:01]} 13. Bxd8 {[%emt 0:00:54]} Nxc2+ {[%emt 0:00:07]} 14. Bxc2 {[%emt 0:00:00]} Rxd8 {[%emt 0:00:47]} 15. O-O {[%emt 0:01:29]} Nf6 {[%emt 0:00:15]} 16. Rfe1 {[%emt 0:00:08]} Bd7 {[%emt 0:00:43]} 17. Rac1 {[%emt 0:04:20]} Ne8 {[%emt 0:01:04]} 18. Bd3 {[%emt 0:02:02]} Nd6 {[%emt 0:00:18]} 19. Ng3 {[%emt 0:01:25]} Re8 {[%emt 0:04:55]} 20. Kf2 {[%emt 0:01:08]} Kf8 {[%emt 0:00:24]} 21. Na4 {[%emt 0:02:26]} Rxe1 {[%emt 0:09:00]} 22. Rxe1 {[%emt 0:00:26]} Re8 {[%emt 0:00:00]} 23. Nc5 {[%emt 0:03:16]} Bc8 {[%emt 0:00:46]} 24. Rxe8+ {[%emt 0:01:29]} Kxe8 {[%emt 0:00:00]} 25. h4 {[%emt 0:06:05]} Ke7 {[%emt 0:00:02]} 26. h5 {[%emt 0:00:53]} Kf6 {[%emt 0:00:57]} 27. b4 {[%emt 0:02:05]} b6 {[%emt 0:01:01]} 28. Nb3 {[%emt 0:00:22]} Nb5 {[%emt 0:02:40]} 29. Bxb5 {[%emt 0:00:33]} cxb5 {[%emt 0:00:00]} 30. Ne2 {[%emt 0:04:46]} Bd7 {[%emt 0:01:34]} 31. Nf4 {[%emt 0:01:27]} Bc6 {[%emt 0:01:40]} 32. Nc1 {[%emt 0:01:27]} Ke7 {[%emt 0:01:11]} 33. Ncd3 {[%emt 0:00:16]} f6 {[%emt 0:03:50]} 34. Ke3 {[%emt 0:01:05]} Kd6 {[%emt 0:00:56]} 35. g4 {[%emt 0:01:36]} Bd7 {[%emt 0:01:18]} 36. Ng6 {[%emt 0:01:57]} Be8 {[%emt 0:00:17]} 37. Nc1 {[%emt 0:02:01]} Bd7 {[%emt 0:00:29]} 38. Ne2 {[%emt 0:00:23]} Be8 {[%emt 0:00:52]} 39. Ng3 {[%emt 0:00:22]} Bd7 {[%emt 0:01:50]} 40. Kf4 {[%emt 0:00:40]} a5 {[%emt 0:00:51]} 41. a3 {[%emt 0:01:05]} axb4 {[%emt 0:01:05]} 42. axb4 {[%emt 0:00:08]} Be6 {[%emt 0:03:19]} 43. Nf5+ {[%emt 0:00:00]} Bxf5 {[%emt 0:00:00]} 44. Kxf5 {[%emt 0:00:04]} Kd7 {[%emt 0:02:33]} 45. Nf4 {[%emt 0:00:15]} Kd6 {[%emt 0:00:44]} 46. Kg6 {[%emt 0:00:32]} Kc6 {[%emt 0:00:20]} 47. Kxg7 {[%emt 0:00:27]} Kd6 {[%emt 0:00:00]} 48. Kxh6 {[%emt 0:00:34]} Kc6 {[%emt 0:00:00]} 49. Kg7 {[%emt 0:00:03]} Kd6 {[%emt 0:00:08]} 50. h6 {[%emt 0:00:00]} Kc6 {[%emt 0:00:04]} 51. h7 {[%emt 0:00:00]} Kd6 {[%emt 0:00:06]} 52. h8=Q {[%emt 0:00:00]} Kc6 {[%emt 0:00:51]} 53. Qc8+ {[%emt 0:00:36]} Kd6 {[%emt 0:00:00]} 54. Qe6+ {[%emt 0:00:00]} Kc7 {[%emt 0:00:21]} 55. Nxd5+ {[%emt 0:00:00]} Kd8 {[%emt 0:00:00]} 56. Qe7+ {[%emt 0:00:28]} Kc8 {[%emt 0:00:10]} 57. Qc5+ {[%emt 0:00:04]} Kd8 {[%emt 0:00:46]} 1-0

[Event "White Rook U14 Final 2019"]
[Site "Sochi"]
[Date "2019.06.06"]
[Round "3.9"]
[White "Khanin, Mikhail E."]
[Black "Putrenko, Kirill"]
[Result "1/2-1/2"]
[ECO "B15"]
[WhiteElo "1692"]
[BlackElo "2010"]
[Annotator "NA RC"]
[PlyCount "127"]
[EventDate "2019.06.02"]
[EventCountry "RUS"]
[SourceTitle "playchess.com"]
[Source "ChessBase"]
[SourceQuality "1"]
[TimeControl "5400+30"]

1. d4 {[%emt 0:00:00]} g6 {[%emt 0:00:00]} 2. e4 {[%emt 0:00:00]} Bg7 {[%emt 0:00:00]} 3. Nc3 {[%emt 0:00:00]} c6 {[%emt 0:02:19]} 4. Nf3 {[%emt 0:00:28]} d5 {[%emt 0:00:18]} 5. e5 {[%emt 0:04:04]} Bg4 {[%emt 0:01:10]} 6. Be2 {[%emt 0:00:33]} Nh6 {[%emt 0:00:00]} 7. h3 {[%emt 0:02:50]} Bxf3 {[%emt 0:01:03]} 8. Bxf3 {[%emt 0:00:08]} O-O {[%emt 0:00:57]} 9. h4 {[%emt 0:03:17]} f6 {[%emt 0:00:28]} 10. Bxh6 {[%emt 0:19:52]} Bxh6 {[%emt 0:00:44]} 11. h5 {[%emt 0:00:22]} Kg7 {[%emt 0:02:08]} 12. hxg6 {[%emt 0:04:57]} hxg6 {[%emt 0:00:21]} 13. Ne2 {[%emt 0:02:12]} Qc8 {[%emt 0:25:40]} 14. exf6+ {[%emt 0:05:58]} exf6 {[%emt 0:02:07]} 15. Qd3 {[%emt 0:02:22]} Qe6 {[%emt 0:01:58]} 16. Kf1 {[%emt 0:01:50]} Nd7 {[%emt 0:02:59]} 17. g3 {[%emt 0:02:40]} f5 {[%emt 0:03:40]} 18. Re1 {[%emt 0:12:44]} Rae8 {[%emt 0:03:25]} 19. Kg2 {[%emt 0:03:06]} Qd6 {[%emt 0:00:53]} 20. Rh2 {[%emt 0:04:34]} Nf6 {[%emt 0:02:49]} 21. Reh1 {[%emt 0:04:49]} Rh8 {[%emt 0:01:11]} 22. Qd1 {[%emt 0:02:34]} Ne4 {[%emt 0:04:01]} 23. Nc1 {[%emt 0:02:10]} Qb4 {[%emt 0:09:53]} 24. Nb3 {[%emt 0:03:15]} Bg5 {[%emt 0:16:12]} 25. Rxh8 {[%emt 0:01:28]} Rxh8 {[%emt 0:00:00]} 26. Rxh8 {[%emt 0:00:00]} Kxh8 {[%emt 0:00:00]} 27. Bxe4 {[%emt 0:00:45]} dxe4 {[%emt 0:00:31]} 28. d5 {[%emt 0:02:48]} e3 {[%emt 0:03:11]} 29. fxe3 {[%emt 0:09:00]} Qe4+ {[%emt 0:00:45]} 30. Qf3 {[%emt 0:01:03]} cxd5 {[%emt 0:05:01]} 31. Qxe4 {[%emt 0:00:47]} dxe4 {[%emt 0:00:18]} 32. Kf2 {[%emt 0:00:36]} Bf6 {[%emt 0:00:54]} 33. c3 {[%emt 0:00:50]} Kg8 {[%emt 0:01:21]} 34. Nd4 {[%emt 0:02:23]} a6 {[%emt 0:01:32]} 35. Ne6 {[%emt 0:00:59]} Be7 {[%emt 0:00:58]} 36. g4 {[%emt 0:00:43]} Kf7 {[%emt 0:00:50]} 37. gxf5 {[%emt 0:00:30]} gxf5 {[%emt 0:00:08]} 38. Nf4 {[%emt 0:00:23]} Bd6 {[%emt 0:01:32]} 39. Ne2 {[%emt 0:01:10]} Kf6 {[%emt 0:01:19]} 40. Nd4 {[%emt 0:00:39]} Ke5 {[%emt 0:00:33]} 41. Ke2 {[%emt 0:00:34]} f4 {[%emt 0:01:50]} 42. exf4+ {[%emt 0:00:32]} Kxf4 {[%emt 0:00:09]} 43. Ne6+ {[%emt 0:00:36]} Kf5 {[%emt 0:00:48]} 44. Nd4+ {[%emt 0:00:39]} Ke5 {[%emt 0:00:28]} 45. Nc2 {[%emt 0:00:26]} Bc5 {[%emt 0:00:47]} 46. Na1 {[%emt 0:00:26]} b5 {[%emt 0:01:24]} 47. Nc2 {[%emt 0:00:38]} Bb6 {[%emt 0:01:07]} 48. Kd2 {[%emt 0:00:26]} Bc5 {[%emt 0:00:25]} 49. Ke2 {[%emt 0:00:07]} Kd5 {[%emt 0:00:39]} 50. Kd2 {[%emt 0:00:34]} a5 {[%emt 0:00:52]} 51. Ke2 {[%emt 0:00:41]} Bb6 {[%emt 0:01:06]} 52. Kd2 {[%emt 0:00:26]} Bd8 {[%emt 0:00:28]} 53. Nd4 {[%emt 0:01:01]} Bg5+ {[%emt 0:00:37]} 54. Ke2 {[%emt 0:00:21]} b4 {[%emt 0:00:15]} 55. cxb4 {[%emt 0:00:38]} Kxd4 {[%emt 0:00:35]} 56. bxa5 {[%emt 0:00:06]} Kc5 {[%emt 0:00:24]} 57. b4+ {[%emt 0:00:38]} Kb5 {[%emt 0:00:32]} 58. a4+ {[%emt 0:00:28]} Ka6 {[%emt 0:00:10]} 59. Kf2 {[%emt 0:00:08]} Bd2 {[%emt 0:00:22]} 60. Ke2 {[%emt 0:00:11]} Bc1 {[%emt 0:00:22]} 61. Kf2 {[%emt 0:00:16]} Bh6 {[%emt 0:00:23]} 62. Ke2 {[%emt 0:00:06]} Bg5 {[%emt 0:00:32]} 63. Kf2 {[%emt 0:00:12]} Bc1 {[%emt 0:00:50]} 64. Ke2 {[%emt 0:00:10]} 1/2-1/2